bitfinex/quotes_SOLUSD_20250410
["timestamp","ask_amount","ask_price","bid_price","bid_amount"]
[1744284166817,10.82039678,113.67,113.62,8.8007]
[1744284167018,10.82039678,113.67,113.62,19.62109678]
[1744284168126,100.14964886,113.68,113.62,19.62109678]
[1744284168313,10.82039678,113.67,113.63,10.82039678]
[1744284168511,10.82039678,113.67,113.62,8.8007]
[1744284168702,10.82039678,113.67,113.63,10.82039678]
[1744284168904,110.97004564,113.68,113.64,10.82039678]
[1744284169627,100.14964886,113.68,113.64,10.82039678]
[1744284170309,110.97004564,113.68,113.61,0.31432314]
[1744284170518,100.14964886,113.68,113.61,0.03]
[1744284170718,110.97004564,113.68,113.64,10.82039678]
[1744284171122,110.97004564,113.68,113.63,10.82039678]
[1744284171516,81.5,113.68,113.66,10.82039678]
[1744284171703,81.5,113.68,113.67,10.82039678]
[1744284174829,81.5,113.68,113.67,19.61769678]
[1744284175646,0.063,113.69,113.67,19.61769678]
[1744284177315,0.063,113.69,113.66,8.7978]
[1744284177507,0.063,113.69,113.67,10.82039678]
[1744284178433,0.063,113.69,113.68,10.82039678]
[1744284179810,0.063,113.69,113.67,19.61749678]
[1744284182531,0.063,113.69,113.67,8.7971]
[1744284182734,0.063,113.69,113.67,19.61749678]
[1744284183233,0.063,113.69,113.68,19.61699678]
[1744284183741,0.063,113.69,113.68,8.7966]
[1744284184445,0.063,113.69,113.68,19.61699678]
[1744284188414,0.063,113.69,113.68,19.90131992]
[1744284189444,0.0001,113.69,113.68,19.90131992]
[1744284190026,0.063,113.72,113.68,103.8240559]
[1744284190229,0.063,113.72,113.71,11.10471992]
[1744284190455,0.063,113.72,113.71,19.89901992]
[1744284191331,0.063,113.72,113.71,19.61469678]
[1744284191660,0.063,113.72,113.7,8.7948]
[1744284191836,0.063,113.72,113.71,10.82039678]
[1744284192419,0.063,113.72,113.71,19.61469678]
[1744284195250,0.063,113.72,113.71,19.89901992]
[1744284197825,0.063,113.72,113.7,8.795]
[1744284198342,0.063,113.72,113.71,10.82039678]
[1744284198646,0.063,113.72,113.7,19.61539678]
[1744284199445,0.063,113.72,113.71,19.61469678]
[1744284199868,0.063,113.72,113.71,19.89901992]
[1744284203531,0.063,113.72,113.71,19.61469678]
[1744284206953,0.063,113.72,113.71,19.89901992]
[1744284212055,0.063,113.73,113.71,38.54866878]
[1744284212256,0.063,113.73,113.72,10.82039678]
[1744284212456,0.063,113.76,113.72,11.10471992]
[1744284212639,0.063,113.76,113.75,11.10471992]
[1744284213154,0.0001,113.76,113.75,19.89591992]
[1744284213340,0.0001,113.76,113.75,63.17750704]
[1744284213540,0.0001,113.76,113.75,19.89591992]
[1744284214356,0.0001,113.76,113.75,19.43855832]
[1744284215058,0.0001,113.76,113.75,8.61816154]
[1744284215240,0.0001,113.76,113.75,10.82039678]
[1744284215439,0.0001,113.76,113.74,8.7919]
[1744284215746,0.0001,113.76,113.74,19.61229678]
[1744284216053,0.0001,113.76,113.75,10.82039678]
[1744284217360,0.0001,113.76,113.74,19.61229678]
[1744284217861,0.0001,113.76,113.75,10.82039678]
[1744284218038,0.0001,113.76,113.74,8.7919]
[1744284218239,0.0001,113.76,113.74,19.61229678]
[1744284218438,0.0001,113.76,113.75,10.82039678]
[1744284219653,0.0001,113.76,113.75,19.61159678]
[1744284220249,0.0001,113.76,113.75,8.7912]
[1744284220849,0.0001,113.76,113.74,19.61189678]
[1744284221162,0.0001,113.76,113.71,8.7943]
[1744284221376,0.0001,113.76,113.74,10.82039678]
[1744284222546,0.0001,113.76,113.73,10.82039678]
[1744284222864,0.0001,113.76,113.73,8.7927]
[1744284223548,0.0001,113.76,113.71,8.7943]
[1744284223738,0.0001,113.76,113.72,10.82039678]
[1744284224965,0.0001,113.76,113.74,10.82039678]
[1744284225457,0.0001,113.76,113.73,19.61309678]
[1744284225968,0.0001,113.76,113.73,8.7927]
[1744284226150,10.82049678,113.76,113.72,19.61349678]
[1744284226953,0.0001,113.76,113.72,19.61349678]
[1744284228652,0.0001,113.76,113.72,10.82039678]
[1744284229548,10.82049678,113.76,113.71,8.7943]
[1744284229765,10.82039678,113.75,113.71,8.7943]
[1744284230867,10.82039678,113.75,113.71,19.61469678]
[1744284231067,29.47014564,113.76,113.71,19.61469678]
[1744284231572,10.82039678,113.75,113.71,19.61469678]
[1744284231870,18.64974886,113.76,113.7,19.64499678]
[1744284231871,1.5813,113.73,113.7,19.64499678]
[1744284232066,1.5813,113.73,113.7,8.8246]
[1744284232566,1.5813,113.73,113.7,0.03]
[1744284232567,92.32039678,113.72,113.7,0.03]
[1744284236251,29.47004564,113.71,113.7,0.03]
[1744284239473,18.64964886,113.71,113.7,0.03]
[1744284239765,29.47004564,113.71,113.7,0.03]
[1744284242774,18.64964886,113.71,113.7,0.03]
[1744284242990,92.32039678,113.72,113.7,0.03]
[1744284244476,81.5,113.72,113.7,0.03]
[1744284244661,92.32039678,113.72,113.7,0.03]
[1744284245375,10.82039678,113.71,113.7,0.03]
[1744284245784,29.47004564,113.71,113.7,0.03]
[1744284247974,29.75436878,113.71,113.7,0.03]
[1744284253168,16.2692,113.73,113.7,0.03]
[1744284253477,18.64964886,113.72,113.7,0.03]
[1744284253863,29.47004564,113.71,113.7,0.03]
[1744284254173,73.0359559,113.71,113.7,0.03]
[1744284254370,29.75436878,113.71,113.7,0.03]
[1744284254680,73.0359559,113.71,113.7,0.03]
[1744284254880,29.75436878,113.71,113.7,0.03]
[1744284255283,26.0,113.68,113.63,10.82039678]
[1744284255582,36.82039678,113.68,113.63,10.82039678]
[1744284257084,36.82039678,113.68,113.64,10.82039678]
[1744284257290,26.0,113.68,113.65,10.82039678]
[1744284257581,18.98039678,113.69,113.65,10.82039678]
[1744284258289,18.98039678,113.69,113.66,8.7981]
[1744284258664,8.16,113.69,113.66,8.7981]
[1744284258986,18.98039678,113.69,113.66,8.7981]
[1744284259285,18.98039678,113.69,113.65,10.82039678]
[1744284260188,18.98039678,113.69,113.65,8.7987]
[1744284260389,10.82039678,113.68,113.65,8.7987]
[1744284263592,18.98039678,113.69,113.65,19.61909678]
[1744284264377,8.16,113.69,113.65,19.61909678]
[1744284264579,110.97004564,113.7,113.65,19.61909678]
[1744284267807,81.5,113.7,113.66,10.82039678]
[1744284269303,81.5,113.7,113.67,10.82039678]
[1744284269497,89.5092,113.73,113.68,10.82039678]
[1744284269703,10.82039678,113.72,113.67,10.82039678]
[1744284269908,10.82039678,113.72,113.68,10.82039678]
[1744284270204,100.32959678,113.73,113.68,10.82039678]
[1744284271801,100.32959678,113.73,113.69,8.7958]
[1744284272898,89.5092,113.73,113.69,8.7958]
[1744284273103,89.5092,113.73,113.69,19.61619678]
[1744284273287,81.5,113.73,113.7,10.82039678]
[1744284273488,81.5,113.73,113.69,19.61619678]
[1744284274386,92.32039678,113.73,113.69,19.61619678]
[1744284274997,92.32039678,113.73,113.69,8.7958]
[1744284275189,10.82039678,113.72,113.68,8.7961]
[1744284276591,10.82039678,113.72,113.68,19.61649678]
[1744284278910,10.82039678,113.72,113.68,8.7961]
[1744284279291,10.82039678,113.71,113.67,19.61739678]
[1744284279994,10.82039678,113.72,113.67,19.61739678]
[1744284280998,92.32039678,113.73,113.68,10.82039678]
[1744284281314,92.32039678,113.73,113.69,8.7958]
[1744284281511,92.32039678,113.73,113.68,8.7961]
[1744284281691,10.82039678,113.72,113.66,0.28432314]
[1744284281896,10.82039678,113.72,113.67,10.82039678]
[1744284282820,10.82039678,113.72,113.67,19.61729678]
[1744284284416,119.12604564,113.71,113.66,19.61819678]
[1744284284721,10.82039678,113.7,113.66,8.7978]
[1744284284915,10.82039678,113.69,113.65,19.61879678]
[1744284285220,10.82039678,113.69,113.65,8.7984]
[1744284285408,10.82039678,113.68,113.64,19.61979678]
[1744284287116,10.82039678,113.68,113.63,10.82039678]
[1744284287315,18.97789678,113.67,113.62,10.82039678]
[1744284289302,18.97789678,113.67,113.63,8.8004]
[1744284290720,18.97789678,113.67,113.63,19.62079678]
[1744284292727,100.47789678,113.67,113.63,19.62079678]
[1744284294802,26.0,113.6,113.58,0.03]
[1744284295002,119.07004564,113.59,113.58,0.03]
[1744284295216,57.6669139,113.59,113.58,0.03]
[1744284297015,77.32711126,113.59,113.58,0.03]
[1744284297221,65.57236614,113.59,113.58,0.03]
[1744284297422,71.68998926,113.59,113.58,0.03]
[1744284297725,52.0297919,113.59,113.58,0.03]
[1744284299212,8.0578,113.59,113.58,0.03]
[1744284299414,16.1578,113.59,113.58,0.03]
[1744284301018,8.1,113.59,113.58,0.03]
[1744284302037,8.1,113.61,113.58,0.03]
[1744284302335,25.0380199,113.62,113.58,16.9680199]
[1744284302531,16.9380199,113.62,113.58,16.9680199]
[1744284302725,81.5,113.62,113.59,8.8035]
[1744284303318,81.5,113.62,113.59,25.7415199]
[1744284304431,81.5,113.62,113.6,16.9380199]
[1744284304833,81.5,113.62,113.59,25.7415199]
[1744284305717,81.5,113.62,113.6,16.9380199]
[1744284306539,81.5,113.62,113.61,8.802]
[1744284307322,89.6106,113.66,113.61,25.7400199]
[1744284307522,106.5486199,113.66,113.62,16.9380199]
[1744284308735,106.5486199,113.66,113.63,8.8004]
[1744284315246,89.6106,113.66,113.63,8.8004]
[1744284315431,106.5486199,113.66,113.63,8.8004]
[1744284315745,98.4380199,113.66,113.63,8.8004]
[1744284317347,92.32270485,113.66,113.63,8.8004]
[1744284320351,92.32270485,113.66,113.62,19.62380485]
[1744284320659,10.82270485,113.65,113.62,8.8011]
[1744284320871,10.82270485,113.64,113.61,8.8016]
[1744284323433,10.82270485,113.63,113.59,10.82270485]
[1744284323734,10.82270485,113.64,113.59,19.62620485]
[1744284323937,10.82270485,113.64,113.6,10.82270485]
[1744284324248,10.82270485,113.65,113.6,10.82270485]
[1744284325768,10.82270485,113.65,113.61,8.802]
[1744284333651,10.82270485,113.65,113.61,19.62470485]
[1744284337861,10.82270485,113.65,113.61,8.802]
[1744284338366,10.82270485,113.65,113.61,19.62470485]
[1744284341966,100.42270485,113.66,113.61,19.62470485]
[1744284343763,100.42270485,113.66,113.62,10.82270485]
[1744284343971,89.6,113.66,113.62,10.82270485]
[1744284345346,81.5,113.66,113.63,8.8004]
[1744284345551,92.32270485,113.67,113.63,8.8004]
[1744284346451,100.40270485,113.67,113.63,8.8004]
[1744284346651,92.32270485,113.67,113.63,8.8004]
[1744284346854,10.82270485,113.66,113.63,8.8004]
[1744284347774,10.82270485,113.66,113.62,8.801]
[1744284348088,10.82270485,113.65,113.61,8.8017]
[1744284348664,10.82270485,113.65,113.61,19.62440485]
[1744284350069,81.5,113.67,113.62,10.82270485]
[1744284350254,100.40270485,113.67,113.62,12.48440485]
[1744284351073,100.40270485,113.67,113.62,21.28490485]
[1744284351858,100.40270485,113.67,113.63,10.82270485]
[1744284352658,100.40270485,113.67,113.63,19.62260485]
[1744284352859,81.5,113.67,113.63,19.62260485]
[1744284353169,119.05235371,113.68,113.63,8.7999]
[1744284353369,108.22964886,113.68,113.64,10.82270485]
[1744284353976,89.58,113.68,113.64,19.62190485]
[1744284354152,89.58,113.68,113.65,10.82270485]
[1744284354480,81.5,113.68,113.65,10.82270485]
[1744284356462,92.32270485,113.68,113.63,19.62260485]
[1744284357481,92.32270485,113.68,113.64,10.82270485]
[1744284357879,81.5,113.68,113.64,19.62210485]
[1744284358176,81.5,113.68,113.65,10.82270485]
[1744284358383,92.32270485,113.69,113.65,10.82270485]
[1744284360184,92.32270485,113.69,113.66,8.7981]
[1744284360375,81.5,113.69,113.66,19.62080485]
[1744284361575,81.5,113.69,113.67,10.82270485]
[1744284361771,89.643,113.7,113.67,10.82270485]
[1744284362080,81.563,113.7,113.67,10.82270485]
[1744284362277,81.563,113.7,113.68,8.7966]
[1744284364288,81.563,113.7,113.67,19.61960485]
[1744284366890,92.38570485,113.7,113.66,8.7979]
[1744284367090,92.38570485,113.7,113.66,19.62060485]
[1744284367393,92.38570485,113.7,113.66,8.7979]
[1744284368189,0.063,113.7,113.69,10.82270485]
[1744284370192,0.063,113.7,113.69,19.61850485]
[1744284371770,0.063,113.7,113.69,8.7958]
[1744284372278,0.063,113.7,113.69,19.61850485]
[1744284373392,0.063,113.7,113.69,8.7958]
[1744284373590,0.063,113.7,113.68,12.38230485]
[1744284373786,0.063,113.7,113.68,19.61900485]
[1744284375299,0.063,113.7,113.68,8.7964]
[1744284375680,0.063,113.7,113.67,10.82270485]
[1744284375885,0.063,113.7,113.66,19.62080485]
[1744284380504,0.063,113.7,113.66,10.82270485]
[1744284380703,29.53535371,113.7,113.64,8.7989]
[1744284381007,10.82270485,113.68,113.63,19.62270485]
[1744284381384,10.82270485,113.68,113.64,10.82270485]
[1744284381895,10.82270485,113.68,113.64,19.62180485]
[1744284383814,18.64964886,113.67,113.63,8.8003]
[1744284383988,29.47235371,113.67,113.63,8.8003]
[1744284384187,29.47235371,113.67,113.63,19.62300485]
[1744284384414,29.47235371,113.67,113.63,8.8003]
[1744284384620,6.1065,113.68,113.63,19.62300485]
[1744284384921,6.1065,113.68,113.64,10.82270485]
[1744284385599,6.1065,113.68,113.64,19.62190485]
[1744284385907,16.92920485,113.68,113.64,8.7992]
[1744284389112,29.47235371,113.67,113.63,10.82270485]
[1744284389292,29.47235371,113.67,113.62,8.8008]
[1744284389492,29.47235371,113.67,113.62,19.62350485]
[1744284390010,29.47235371,113.67,113.62,8.8008]
[1744284390205,29.47235371,113.67,113.62,19.62350485]
[1744284390510,10.82270485,113.66,113.62,19.62350485]
[1744284391102,29.47235371,113.67,113.62,19.62350485]
[1744284392101,92.32270485,113.66,113.62,10.82270485]
[1744284392910,81.5,113.66,113.62,19.62390485]
[1744284393915,92.32270485,113.66,113.62,19.62390485]
[1744284395196,81.5,113.66,113.62,19.62390485]
[1744284395718,81.5,113.66,113.63,10.82270485]
[1744284397508,81.5,113.66,113.62,8.8012]
[1744284397820,81.5,113.66,113.62,19.62390485]
[1744284399200,81.5,113.66,113.63,10.82270485]
[1744284399399,81.5,113.66,113.62,8.8012]
[1744284399600,81.5,113.66,113.63,10.82270485]
[1744284401300,81.5,113.66,113.63,19.62310485]
[1744284402919,1.5903,113.69,113.65,10.82270485]
[1744284403103,1.5903,113.69,113.66,10.82270485]
[1744284405919,1.5903,113.69,113.65,8.7981]
[1744284406226,1.5903,113.69,113.66,10.82270485]
[1744284406727,1.5903,113.69,113.66,19.62080485]
[1744284407824,1.5903,113.69,113.66,10.82270485]
[1744284409830,1.5903,113.69,113.65,19.62110485]
[1744284412333,1.5903,113.69,113.66,10.82270485]
[1744284413232,92.38570485,113.7,113.65,19.62110485]
[1744284415832,18.64964886,113.69,113.65,10.82270485]
[1744284416134,10.82270485,113.68,113.64,10.82270485]
[1744284416436,10.82270485,113.68,113.63,19.62270485]
[1744284416617,92.32270485,113.68,113.63,19.62270485]
[1744284416935,81.5,113.68,113.63,19.62270485]
[1744284417128,92.32270485,113.68,113.63,19.62270485]
[1744284418830,81.5,113.68,113.63,19.62270485]
[1744284419036,11.10702799,113.69,113.64,10.82270485]
[1744284419433,10.82270485,113.68,113.61,6.5212]
[1744284419631,10.82270485,113.68,113.63,10.82270485]
[1744284419829,10.82270485,113.68,113.64,10.82270485]
[1744284420219,10.82270485,113.68,113.62,8.8012]
[1744284420732,110.97235371,113.67,113.63,10.82270485]
[1744284421635,110.97235371,113.67,113.62,10.82270485]
[1744284422536,10.82270485,113.66,113.62,10.82270485]
[1744284422729,10.82270485,113.65,113.6,21.27130485]
[1744284422935,92.32270485,113.65,113.6,19.62520485]
[1744284424315,18.64964886,113.64,113.6,19.62520485]
[1744284424731,18.64964886,113.64,113.61,10.82270485]
[1744284425139,18.64964886,113.64,113.6,10.82270485]
[1744284425533,18.64964886,113.64,113.59,8.8035]
[1744284425732,18.64964886,113.64,113.6,10.82270485]
[1744284426123,18.64964886,113.64,113.6,19.62510485]
[1744284427238,81.5,113.65,113.62,10.82270485]
[1744284427439,81.5,113.65,113.64,10.82270485]
[1744284427827,81.5,113.65,113.61,1.5709]
[1744284428035,81.5,113.65,113.62,8.8012]
[1744284428235,81.5,113.65,113.64,10.82270485]
[1744284431249,81.5,113.65,113.63,10.82270485]
[1744284434137,81.5,113.65,113.62,10.82270485]
[1744284434548,81.5,113.65,113.61,8.8017]
[1744284434749,81.5,113.65,113.62,10.82270485]
[1744284435549,81.5,113.65,113.61,8.8017]
[1744284435735,81.5,113.65,113.62,10.82270485]
[1744284436140,81.5,113.65,113.63,10.82270485]
[1744284436852,81.5,113.65,113.64,10.82270485]
[1744284437231,81.5,113.65,113.64,19.62240485]
[1744284443963,100.14964886,113.69,113.64,19.62240485]
[1744284444252,81.5,113.69,113.67,10.82270485]
[1744284445558,81.5,113.69,113.66,10.82270485]
[1744284446362,81.5,113.69,113.66,19.62070485]
[1744284449166,81.5,113.69,113.65,19.62120485]
[1744284450037,81.5,113.69,113.66,19.62040485]
[1744284451661,81.5,113.69,113.66,8.7977]
[1744284451963,81.5,113.69,113.66,19.62040485]
[1744284453459,81.5,113.69,113.66,8.7977]
[1744284453658,81.5,113.69,113.66,10.82270485]
[1744284455759,81.5,113.69,113.65,10.82270485]
[1744284457065,81.5,113.69,113.63,8.8004]
[1744284457365,81.5,113.69,113.65,10.82270485]
[1744284457953,92.32270485,113.69,113.65,10.82270485]
[1744284458346,81.5,113.69,113.65,19.62120485]
[1744284458548,81.5,113.69,113.65,8.7985]
[1744284458748,81.5,113.69,113.66,10.82270485]
[1744284459165,81.5,113.69,113.65,8.7985]
[1744284459368,81.5,113.69,113.65,19.62120485]
[1744284460166,29.47235371,113.68,113.63,8.8004]
[1744284460554,35.48735371,113.66,113.6,8.8028]
[1744284460759,92.32270485,113.65,113.6,8.8028]
[1744284460958,92.32270485,113.65,113.61,10.82270485]
[1744284461153,18.64964886,113.64,113.6,8.8028]
[1744284461354,18.64964886,113.64,113.6,19.62550485]
[1744284462974,29.47235371,113.64,113.6,19.62550485]
[1744284463174,18.64964886,113.64,113.6,19.62550485]
[1744284463670,18.64964886,113.64,113.61,10.82270485]
[1744284466170,18.64964886,113.64,113.59,8.8035]
[1744284466369,29.47235371,113.64,113.59,8.8035]
[1744284466569,29.47235371,113.64,113.6,10.82270485]
[1744284467273,18.64964886,113.64,113.6,19.62500485]
[1744284468074,1.5394,113.63,113.59,19.62600485]
[1744284468382,35.72255371,113.62,113.58,10.85270485]
[1744284468753,35.72255371,113.62,113.58,19.65700485]
[1744284469466,43.78255371,113.62,113.58,19.65700485]
[1744284471277,43.78255371,113.62,113.58,0.03]
[1744284471776,81.5,113.61,113.58,0.03]
[1744284471981,81.5,113.61,113.58,10.85270485]
[1744284472593,81.5,113.61,113.58,19.65680485]
[1744284474293,81.5,113.61,113.59,10.82270485]
[1744284474467,81.5,113.61,113.6,19.62550485]
[1744284480800,81.5,113.61,113.6,8.8028]
[1744284481012,81.5,113.61,113.6,19.62550485]
[1744284483998,81.5,113.61,113.59,10.82270485]
[1744284484191,81.5,113.61,113.58,0.03]
[1744284484390,17.31180485,113.6,113.58,0.03]
[1744284484779,29.47235371,113.59,113.58,0.03]
[1744284485177,110.97235371,113.59,113.58,0.03]
[1744284486197,111.25667685,113.59,113.58,0.03]
[1744284486879,112.81257685,113.59,113.58,0.03]
[1744284487080,31.31257685,113.59,113.58,0.03]
[1744284487275,133.479572,113.58,113.56,0.03]
[1744284487496,37.81667685,113.57,113.56,0.03]
[1744284489707,26.0,113.55,113.54,0.03]
[1744284489919,55.47235371,113.55,113.54,0.03]
[1744284490502,61.94665371,113.55,113.54,0.03]
[1744284492294,51.408272,113.55,113.54,0.03]
[1744284492908,44.64964886,113.55,113.54,0.03]
[1744284493080,18.64964886,113.55,113.54,0.03]
[1744284493699,81.5,113.56,113.54,0.03]
[1744284496904,29.75667685,113.55,113.54,0.03]
[1744284497485,55.75667685,113.55,113.54,0.03]
[1744284502895,44.933972,113.55,113.54,0.03]
[1744284503096,55.75667685,113.55,113.54,0.03]
[1744284503908,44.933972,113.55,113.54,0.03]
[1744284504117,55.75667685,113.55,113.54,0.03]
[1744284507405,82.15667685,113.55,113.54,0.03]
[1744284508714,82.15667685,113.55,113.5,0.03]
[1744284508715,18.64964886,113.52,113.5,0.03]
[1744284508914,100.08964886,113.51,113.5,0.03]
[1744284509724,110.91235371,113.51,113.5,0.03]
[1744284510303,29.75667685,113.51,113.5,0.03]
[1744284511099,56.15667685,113.51,113.5,0.03]
[1744284511301,18.933972,113.51,113.5,0.03]
[1744284511615,37.55235371,113.54,113.5,19.66320485]
[1744284511805,0.28432314,113.53,113.5,19.66320485]
[1744284512124,0.28432314,113.53,113.5,0.03]
[1744284513008,18.64964886,113.52,113.5,0.03]
[1744284513213,29.47235371,113.52,113.5,0.03]
[1744284513542,18.64964886,113.52,113.5,0.03]
[1744284515409,18.64964886,113.51,113.5,0.03]
[1744284517433,29.75667685,113.53,113.5,0.03]
[1744284517728,18.933972,113.53,113.5,0.03]
[1744284518527,18.64964886,113.53,113.5,0.03]
[1744284518723,18.64964886,113.53,113.5,10.85270485]
[1744284519528,18.64964886,113.53,113.51,8.8097]
[1744284520103,8.08,113.54,113.51,8.8097]
[1744284520307,26.72964886,113.54,113.51,8.8097]
[1744284520508,26.72964886,113.54,113.51,19.63240485]
[1744284521726,26.72964886,113.54,113.51,8.8097]
[1744284521919,26.72964886,113.54,113.5,19.66280485]
[1744284523336,26.72964886,113.54,113.5,8.8401]
[1744284523518,26.72964886,113.54,113.5,19.66280485]
[1744284524429,108.22964886,113.54,113.5,19.66280485]
[1744284525033,119.05235371,113.54,113.5,19.66280485]
[1744284526131,108.22964886,113.54,113.5,19.66280485]
[1744284532353,100.14964886,113.54,113.5,19.66280485]
[1744284532550,81.5,113.54,113.52,10.82270485]
[1744284532943,10.82270485,113.56,113.52,10.82270485]
[1744284533545,26.0,113.54,113.52,10.82270485]
[1744284533751,26.0,113.54,113.5,8.8401]
[1744284533949,26.0,113.54,113.51,10.82270485]
[1744284535057,36.82270485,113.54,113.5,8.8402]
[1744284535855,110.97235371,113.53,113.5,0.03]
[1744284537662,100.14964886,113.53,113.5,0.03]
[1744284538869,110.97235371,113.53,113.5,0.03]
[1744284539070,81.5,113.52,113.5,0.03]
[1744284539669,92.32270485,113.52,113.5,0.03]
[1744284539865,18.64964886,113.51,113.5,0.03]
[1744284540061,11.10702799,113.51,113.5,0.03]
[1744284542183,26.28432314,113.51,113.5,0.03]
[1744284543264,55.75667685,113.51,113.5,0.03]
[1744284545401,44.933972,113.51,113.5,0.03]
[1744284548691,44.64964886,113.51,113.5,0.03]
[1744284548883,18.64964886,113.51,113.5,0.03]
[1744284549684,11.10702799,113.53,113.5,0.03]
[1744284549870,18.64964886,113.52,113.5,0.03]
[1744284550970,16.1429,113.54,113.5,0.03]
[1744284551191,29.47235371,113.53,113.5,0.03]
[1744284551399,18.64964886,113.53,113.5,0.03]
[1744284553700,29.47235371,113.53,113.5,0.03]
[1744284553896,10.82270485,113.53,113.5,0.03]
[1744284554199,18.64964886,113.52,113.5,0.03]
[1744284562206,10.82270485,113.54,113.5,0.03]
[1744284562379,10.82270485,113.54,113.52,10.82270485]
[1744284562380,81.5,113.54,113.52,10.82270485]
[1744284563601,81.5,113.54,113.51,10.82270485]
[1744284563801,81.5,113.54,113.5,0.03]
[1744284563802,81.5,113.54,113.52,19.63090485]
[1744284564399,81.5,113.54,113.53,10.82270485]
[1744284564603,100.14964886,113.56,113.52,19.63090485]
[1744284564986,81.5,113.56,113.53,10.82270485]
[1744284565188,10.82270485,113.57,113.53,10.82270485]
[1744284565189,81.5,113.57,113.53,10.82270485]
[1744284565386,18.64964886,113.57,113.53,10.82270485]
[1744284565593,10.88570485,113.58,113.53,10.82270485]
[1744284565987,10.88570485,113.58,113.54,8.8074]
[1744284566183,11.17002799,113.58,113.54,8.8074]
[1744284566391,11.17002799,113.58,113.54,19.63010485]
[1744284566813,0.34732314,113.58,113.54,19.63010485]
[1744284566986,81.5,113.57,113.54,8.8074]
[1744284567190,81.5,113.57,113.56,10.82270485]
[1744284567998,81.5,113.57,113.56,19.62860485]
[1744284568604,0.063,113.58,113.56,19.62860485]
[1744284568912,0.063,113.58,113.57,10.82270485]
[1744284570193,0.063,113.58,113.57,19.62780485]
[1744284570513,0.063,113.58,113.57,8.8051]
[1744284570813,0.063,113.58,113.57,19.62780485]
[1744284575214,0.063,113.58,113.52,43.2908194]
[1744284575394,0.063,113.58,113.54,10.82270485]
[1744284575593,10.88570485,113.58,113.54,10.82270485]
[1744284576409,0.063,113.58,113.54,10.82270485]
[1744284576609,0.063,113.58,113.55,10.82270485]
[1744284576810,0.063,113.58,113.55,19.62880485]
[1744284577207,0.063,113.58,113.56,10.82270485]
[1744284579521,0.063,113.58,113.56,8.8052]
[1744284580219,0.063,113.58,113.55,19.62900485]
[1744284581411,0.063,113.58,113.55,8.8063]
[1744284581603,0.063,113.58,113.55,19.62900485]
[1744284584321,0.063,113.58,113.5,0.03]
[1744284584322,92.32270485,113.57,113.5,0.03]
[1744284584627,10.82270485,113.55,113.51,8.8097]
[1744284584801,10.82270485,113.54,113.51,8.8097]
[1744284585119,18.64964886,113.55,113.51,19.63240485]
[1744284585120,29.47235371,113.55,113.51,19.63240485]
[1744284585325,10.82270485,113.54,113.51,8.8097]
[1744284585626,29.47235371,113.55,113.51,8.8097]
[1744284585809,29.47235371,113.55,113.51,10.82270485]
[1744284587519,18.64964886,113.55,113.52,10.82270485]
[1744284587697,81.5,113.56,113.53,10.82270485]
[1744284589221,81.5,113.56,113.53,19.63030485]
[1744284589407,81.5,113.56,113.55,10.82270485]
[1744284591037,81.5,113.56,113.53,8.8076]
[1744284591325,81.5,113.56,113.54,19.62980485]
[1744284592101,81.5,113.56,113.55,10.82270485]
[1744284595106,81.5,113.56,113.55,19.62930485]
[1744284595308,81.5,113.56,113.55,8.8066]
[1744284595517,81.5,113.56,113.55,19.62930485]
[1744284595729,81.5,113.56,113.55,8.8066]
[1744284595922,81.5,113.56,113.55,19.62930485]
[1744284597825,0.063,113.58,113.55,19.62930485]
[1744284598013,0.063,113.58,113.57,10.82270485]
[1744284600222,0.063,113.58,113.57,19.62780485]
[1744284603030,0.063,113.58,113.53,1.82852314]
[1744284603220,0.063,113.58,113.56,10.82270485]
[1744284604918,0.063,113.58,113.56,8.8059]
[1744284605120,0.063,113.58,113.56,19.62860485]
[1744284605635,0.063,113.58,113.55,19.62900485]